bitfinex/quotes_SOLUSD_20251115
["timestamp","ask_amount","ask_price","bid_price","bid_amount"]
[1763236823360,9.96167493,141.84,141.83,8.34]
[1763236823562,12.87315246,141.84,141.83,8.34]
[1763236823748,30.49864597,141.84,141.83,8.34]
[1763236824688,53.14984597,141.84,141.83,8.34]
[1763236824973,74.32656569,141.84,141.83,8.34]
[1763236825158,22.6512,141.82,141.81,8.34]
[1763236825556,25.56267753,141.82,141.81,8.34]
[1763236826358,22.6512,141.8,141.79,0.1]
[1763236826649,22.6512,141.8,141.79,8.44]
[1763236826650,32.6148637,141.8,141.79,8.44]
[1763236828376,41.0548637,141.8,141.79,8.44]
[1763236828974,32.6148637,141.8,141.79,9.15]
[1763236829466,7.05188298,141.81,141.79,9.15]
[1763236829672,2.91147753,141.81,141.79,8.44]
[1763236830377,2.91147753,141.81,141.8,0.71]
[1763236831081,9.9631664,141.81,141.8,0.71]
[1763236833482,9.9631664,141.81,141.79,8.44]
[1763236833780,2.91147753,141.8,141.79,8.44]
[1763236834662,32.6148637,141.8,141.79,8.44]
[1763236837999,35.52634123,141.8,141.79,0.1]
[1763236842582,53.15680667,141.8,141.77,10.43286612]
[1763236842887,5.82295506,141.78,141.77,10.43286612]
[1763236844268,12.87613604,141.78,141.77,10.43286612]
[1763236845597,22.66496373,141.78,141.77,1e-08]
[1763236845987,25.48992223,141.78,141.76,0.1]
[1763236846192,107.11147753,141.77,141.76,0.1]
[1763236846395,2.91147753,141.77,141.76,0.1]
[1763236846901,2.91147753,141.77,141.73,0.79]
[1763236846902,22.6512,141.74,141.73,0.1]
[1763236847083,25.56267753,141.74,141.69,0.69]
[1763236847278,22.6512,141.74,141.73,0.69]
[1763236847485,32.61784897,141.74,141.73,0.69]
[1763236847679,32.61784897,141.74,141.72,9.13]
[1763236848283,5.82295506,141.73,141.72,0.1]
[1763236849073,2.91147753,141.73,141.72,0.1]
[1763236849478,9.96714676,141.73,141.72,0.1]
[1763236857300,9.96714676,141.73,141.72,8.44]
[1763236858697,9.96714676,141.73,141.72,9.13]
[1763236859710,9.96714676,141.73,141.72,8.44]
[1763236860710,2.91147753,141.73,141.72,9.13]
[1763236860910,2.91147753,141.77,141.73,50.0]
[1763236861209,2.91147753,141.76,141.73,50.69]
[1763236861506,7.05218617,141.8,141.74,50.69]
[1763236861715,2.91147753,141.78,141.75,58.34]
[1763236861921,2.91147753,141.78,141.76,0.69]
[1763236862291,2.91147753,141.77,141.76,0.69]
[1763236866185,9.96515602,141.77,141.72,0.1]
[1763236866390,2.91147753,141.78,141.75,0.69]
[1763236866700,7.05168887,141.81,141.76,8.34]
[1763236866899,104.2,141.8,141.76,8.34]
[1763236867090,104.2,141.8,141.77,0.69]
[1763236867499,1.86487924,141.79,141.77,0.69]
[1763236867915,104.2,141.8,141.77,0.69]
[1763236868088,1.86487924,141.79,141.77,0.69]
[1763236869908,1.86487924,141.78,141.77,0.69]
[1763236871995,11.46293946,141.78,141.75,0.69]
[1763236872206,9.59806022,141.78,141.76,8.34]
[1763236872400,1.86487924,141.77,141.76,8.34]
[1763236873491,8.91855773,141.77,141.76,8.34]
[1763236878420,8.91855773,141.77,141.76,9.05]
[1763236881017,8.91855773,141.77,141.76,8.34]
[1763236882716,1.86487924,141.77,141.76,9.05]
[1763236882912,1.86487924,141.77,141.76,8.34]
[1763236883227,9.61855773,141.77,141.76,8.34]
[1763236884424,22.6512,141.74,141.72,0.1]
[1763236884626,22.6512,141.74,141.73,8.34]
[1763236885195,29.70637144,141.74,141.73,8.34]
[1763236885923,31.57125068,141.74,141.73,8.34]
[1763236886509,31.57125068,141.74,141.73,9.05]
[1763236887821,8.92005068,141.74,141.73,9.05]
[1763236888128,7.05488032,141.75,141.73,9.05]
[1763236888304,1.86487924,141.74,141.73,8.34]
[1763236888701,8.92005068,141.74,141.73,9.05]
[1763236890298,1.86487924,141.74,141.73,9.05]
[1763236890722,8.92005068,141.74,141.73,9.05]
[1763236891327,1.86487924,141.74,141.73,9.05]
[1763236892807,8.92005068,141.74,141.73,9.05]
[1763236893203,1.86487924,141.74,141.73,9.05]
[1763236893625,8.92005068,141.74,141.73,9.05]
[1763236895910,8.92005068,141.74,141.73,8.34]
[1763236896112,9.62005068,141.74,141.73,8.34]
[1763236896826,34.13612992,141.74,141.73,8.34]
[1763236899033,32.27125068,141.74,141.73,8.34]
[1763236904510,31.57125068,141.74,141.73,8.34]
[1763236907954,32.23125068,141.74,141.73,8.34]
[1763236910937,31.57125068,141.74,141.73,8.34]
[1763236921534,34.09612992,141.74,141.73,8.34]
[1763236924034,33.43612992,141.74,141.73,8.34]
[1763236924735,31.57125068,141.74,141.73,8.34]
[1763236925936,32.23125068,141.74,141.73,8.34]
[1763236926342,31.57125068,141.74,141.73,8.34]
[1763236926944,32.62366442,141.74,141.73,8.34]
[1763236930469,33.28366442,141.74,141.73,8.34]
[1763236930858,32.62366442,141.74,141.73,9.03]
[1763236931675,9.97246442,141.74,141.73,9.03]
[1763236932246,9.97246442,141.74,141.73,8.34]
[1763236933169,9.97246442,141.74,141.73,9.05]
[1763236949186,13.5597574,141.74,141.73,8.34]
[1763236950767,23.34858509,141.74,141.73,8.34]
[1763236952476,23.34858509,141.74,141.72,0.1]
[1763236952676,6.50458596,141.73,141.72,0.1]
[1763236954401,13.56025519,141.73,141.72,0.1]
[1763236956690,13.56025519,141.73,141.71,0.1]
[1763236956691,36.21145519,141.73,141.71,0.1]
[1763236956895,6.50458596,141.72,141.71,0.1]
[1763236957273,14.27458596,141.72,141.71,0.1]
[1763236958192,21.33075305,141.72,141.71,0.1]
[1763236958394,22.00075305,141.72,141.71,0.1]
[1763236959192,31.78958074,141.72,141.7,8.44]
[1763236959399,3.58729298,141.71,141.7,8.44]
[1763236959786,3.58729298,141.71,141.68,0.1]
[1763236959787,22.6512,141.69,141.68,0.1]
[1763236959977,25.56849298,141.69,141.68,0.1]
[1763236960385,53.82382232,141.69,141.68,0.1]
[1763236960785,53.82382232,141.69,141.68,0.81]
[1763236961178,53.82382232,141.69,141.68,0.1]
[1763236961999,66.52994299,141.69,141.68,0.1]
[1763236962779,67.19994299,141.69,141.68,0.1]
[1763236963013,67.19994299,141.69,141.67,8.34]
[1763236963199,5.83458596,141.68,141.67,8.34]
[1763236963418,22.6512,141.66,141.65,0.72]
[1763236963576,28.48578596,141.66,141.62,0.1]
[1763236963776,2.91729298,141.64,141.63,9.06]
[1763236966976,9.97744547,141.64,141.63,9.06]
[1763236970097,2.91729298,141.64,141.63,9.06]
[1763236973283,9.97744547,141.64,141.63,9.06]
[1763236974396,2.91729298,141.64,141.63,9.06]
[1763236977780,104.2,141.67,141.63,9.06]
[1763236978083,104.2,141.67,141.64,0.72]
[1763236978297,111.25870887,141.67,141.65,8.34]
[1763236978480,104.2,141.66,141.65,8.34]
[1763236978798,104.2,141.66,141.65,9.06]
[1763236979379,107.11729298,141.66,141.65,9.06]
[1763236980601,114.1764487,141.66,141.65,9.06]
[1763236982217,104.2,141.66,141.65,9.06]
[1763236982392,7.05894932,141.67,141.65,9.06]
[1763236982708,7.05894932,141.67,141.66,0.72]
[1763236985813,9.9762423,141.67,141.66,0.72]
[1763236986114,7.05894932,141.67,141.66,0.72]
[1763236986315,9.9762423,141.67,141.66,0.72]
[1763236986611,2.91729298,141.67,141.66,0.72]
[1763236986916,9.97550153,141.68,141.66,0.72]
[1763236987097,9.97550153,141.68,141.67,8.34]
[1763236987483,9.97550153,141.68,141.67,9.06]
[1763236987685,111.25786304,141.69,141.67,9.06]
[1763236987905,114.17515602,141.69,141.68,0.72]
[1763236988908,113.12532895,141.69,141.68,0.72]
[1763236989810,111.25786304,141.69,141.68,0.72]
[1763237000621,113.12532895,141.69,141.67,9.01]
[1763237001417,113.12532895,141.69,141.68,0.67]
[1763237001816,111.25786304,141.69,141.68,0.67]
[1763237004034,113.12532895,141.69,141.68,0.67]
[1763237004207,113.12532895,141.69,141.67,8.34]
[1763237004408,113.12532895,141.69,141.67,9.01]
[1763237005227,113.12532895,141.69,141.68,0.67]
[1763237005428,111.25786304,141.69,141.68,0.67]
[1763237010319,7.0563919,141.72,141.68,0.67]
[1763237010522,8.92385781,141.72,141.69,8.34]
[1763237010925,8.92385781,141.72,141.7,0.67]
[1763237011143,8.92385781,141.72,141.71,8.34]
[1763237011948,8.92385781,141.72,141.71,9.01]
[1763237014250,8.92385781,141.72,141.71,8.34]
[1763237014421,11.46132372,141.72,141.71,8.34]
[1763237015326,17.06372145,141.72,141.71,8.34]
[1763237015730,1.86746591,141.67,141.66,0.67]
[1763237016024,1.86746591,141.69,141.66,8.34]
[1763237016222,8.92523971,141.69,141.66,8.34]
[1763237016429,8.92523971,141.69,141.67,0.67]
[1763237016628,8.92523971,141.69,141.68,8.34]
[1763237017136,1.86746591,141.69,141.68,9.01]
[1763237017325,8.92482138,141.7,141.68,9.01]
[1763237017519,8.92482138,141.7,141.69,0.67]
[1763237018130,8.92482138,141.7,141.68,9.01]
[1763237018338,1.86746591,141.69,141.68,8.34]
[1763237018711,2.53746591,141.69,141.68,8.34]
[1763237018915,1.86746591,141.69,141.68,8.34]
[1763237020427,8.925127,141.69,141.68,8.34]
[1763237021020,9.595127,141.69,141.68,8.34]
[1763237021233,8.925127,141.69,141.68,8.34]
[1763237021436,144.49345433,141.71,141.68,8.34]
[1763237021437,21.19467307,141.7,141.68,9.01]
[1763237021645,145.16345433,141.71,141.68,8.34]
[1763237021646,1.86746591,141.69,141.68,8.34]
[1763237022224,1.86746591,141.69,141.68,9.01]
[1763237022425,8.92467498,141.7,141.68,9.01]
[1763237022624,8.92467498,141.7,141.69,0.67]
[1763237024352,113.12428993,141.71,141.69,0.67]
[1763237024569,113.12428993,141.71,141.7,8.34]
[1763237025156,113.12428993,141.71,141.7,9.02]
[1763237026057,1.86746591,141.72,141.7,9.02]
[1763237026255,7.05613585,141.73,141.71,0.68]
[1763237026428,8.92360176,141.73,141.72,8.34]
[1763237026931,8.92360176,141.73,141.72,9.02]
[1763237028659,1.86746591,141.73,141.72,9.02]
[1763237028953,8.92313514,141.73,141.72,9.02]
[1763237035038,7.05537415,141.74,141.72,9.02]
[1763237035243,1.86746591,141.74,141.73,0.68]
[1763237036152,8.92263735,141.74,141.73,0.68]
[1763237036659,1.86746591,141.74,141.73,0.68]
[1763237037940,106.06746591,141.75,141.73,0.68]
[1763237038143,22.6512,141.77,141.74,8.34]
[1763237038346,1.86746591,141.76,141.74,8.34]
[1763237038541,1.86746591,141.76,141.75,0.68]
[1763237040435,8.92164198,141.76,141.75,0.68]
[1763237041460,8.92164198,141.76,141.74,8.34]
[1763237041637,1.86746591,141.75,141.74,9.02]
[1763237047552,7.05417607,141.76,141.74,9.02]
[1763237047751,1.86746591,141.76,141.75,0.68]
[1763237048765,8.92135108,141.77,141.75,0.68]
[1763237048966,8.92135108,141.77,141.76,8.34]
[1763237049168,8.92135108,141.77,141.76,9.02]
[1763237050554,1.86746591,141.77,141.76,9.02]
[1763237050760,8.9211444,141.77,141.76,9.02]
[1763237050961,9.9679532,141.77,141.76,9.02]
[1763237053091,2.91427471,141.78,141.76,9.02]
[1763237053374,114.16717019,141.79,141.77,0.67]
[1763237053572,114.16717019,141.79,141.78,8.34]
[1763237053757,107.11427471,141.79,141.78,8.34]
[1763237053963,107.11427471,141.79,141.78,9.01]
[1763237056083,114.16695825,141.79,141.78,9.01]
[1763237056674,107.11427471,141.79,141.78,9.01]
[1763237056859,104.2,141.79,141.78,9.01]
[1763237057785,9.96620333,141.81,141.78,16.06318098]
[1763237057968,9.96620333,141.81,141.79,0.67]
[1763237058166,9.96620333,141.81,141.8,8.34]
[1763237058368,2.91427471,141.82,141.8,8.34]
[1763237058581,2.91427471,141.82,141.81,0.67]
[1763237060377,107.31427471,141.83,141.81,50.67]
[1763237060568,107.31427471,141.83,141.82,8.34]
[1763237060882,108.00427471,141.83,141.82,8.34]
[1763237061372,108.00427471,141.83,141.79,0.67]
[1763237061692,2.91427471,141.8,141.78,50.67]
[1763237061989,2.91427471,141.79,141.78,50.67]
[1763237062301,2.91427471,141.79,141.78,8.99]
[1763237062787,2.91427471,141.79,141.78,8.32]
[1763237063177,2.91427471,141.79,141.78,8.99]
[1763237065077,7.05252301,141.8,141.78,8.99]
[1763237065280,9.96679772,141.8,141.78,8.99]
[1763237066993,114.16617809,141.81,141.79,0.67]
[1763237067290,114.16617809,141.81,141.8,8.32]
[1763237068094,113.66617809,141.81,141.8,8.32]
[1763237069190,110.75190338,141.81,141.8,8.99]
[1763237069390,9.96560515,141.82,141.8,8.99]
[1763237069593,10.16516864,141.83,141.81,0.67]
[1763237069784,10.16516864,141.83,141.82,8.32]
[1763237070376,10.16516864,141.83,141.82,8.99]
[1763237070973,9.66516864,141.83,141.82,8.99]
[1763237071787,2.91427471,141.83,141.82,8.99]
[1763237074100,0.2,141.84,141.82,8.99]
[1763237074288,0.2,141.84,141.83,0.67]
[1763237076781,7.04899357,141.87,141.83,7.72069449]
[1763237076984,7.04899357,141.87,141.84,8.32]
[1763237076985,2.91427471,141.86,141.84,8.32]
[1763237077185,2.91427471,141.86,141.84,8.99]
[1763237077394,2.91427471,141.86,141.85,0.67]
[1763237077800,9.96326828,141.87,141.85,0.67]
[1763237078110,9.96326828,141.87,141.86,8.32]
[1763237080204,2.91427471,141.87,141.86,8.99]
[1763237080588,103.7,141.88,141.86,8.99]
[1763237080791,3.11427471,141.89,141.86,58.32]
[1763237081108,2.91427471,141.87,141.86,58.99]
[1763237081286,2.91427471,141.87,141.86,8.32]
[1763237081491,3.60427471,141.87,141.86,8.32]
[1763237082384,10.65298127,141.87,141.86,8.32]
[1763237086707,9.96298127,141.87,141.86,8.32]
[1763237087207,10.64298127,141.87,141.86,8.32]
[1763237087506,9.96298127,141.87,141.86,8.32]
[1763237095710,7.04870656,141.87,141.86,8.32]
[1763237095916,9.96298127,141.87,141.86,8.98]
[1763237097118,9.96298127,141.87,141.86,8.32]
[1763237098414,9.96298127,141.87,141.86,8.98]
[1763237100215,9.96298127,141.87,141.86,8.32]
[1763237100622,9.96298127,141.87,141.86,8.98]
[1763237101727,9.96298127,141.87,141.86,8.32]
[1763237101939,10.64298127,141.87,141.86,8.32]
[1763237102413,9.96298127,141.87,141.86,8.32]
[1763237103594,103.7,141.86,141.83,8.32]
[1763237103798,2.91427471,141.84,141.83,8.32]
[1763237104817,9.96447211,141.84,141.83,8.32]
[1763237106942,103.7,141.85,141.83,8.98]
[1763237107112,106.61427471,141.85,141.84,0.66]
[1763237107647,113.66397509,141.85,141.84,0.66]
[1763237108237,106.61427471,141.85,141.84,0.66]
[1763237108821,113.66397509,141.85,141.84,0.66]
[1763237109021,106.61427471,141.85,141.84,0.66]
[1763237109236,113.66397509,141.85,141.84,0.66]
[1763237110608,110.74970038,141.85,141.84,0.66]
[1763237110935,105.56320117,141.85,141.84,0.66]
[1763237113157,112.61290155,141.85,141.84,0.66]
[1763237113845,112.61290155,141.85,141.84,0.72]
[1763237114535,105.56320117,141.85,141.84,0.72]
[1763237116230,112.61290155,141.85,141.84,0.72]
[1763237117346,113.27290155,141.85,141.83,8.32]
[1763237117543,111.40970038,141.85,141.83,8.32]
[1763237117716,1.86320117,141.84,141.83,8.32]
[1763237117921,8.91339857,141.84,141.83,8.32]
[1763237119751,9.57339857,141.84,141.83,8.32]
[1763237119935,8.91339857,141.84,141.83,8.32]
[1763237121058,11.43659974,141.84,141.83,8.32]
[1763237121360,29.06209325,141.84,141.82,8.32]
[1763237121527,2.52320117,141.83,141.82,8.32]
[1763237122241,23.45970927,141.83,141.82,8.32]
[1763237122829,9.57389566,141.83,141.82,8.32]
[1763237123035,8.91389566,141.83,141.82,8.32]
[1763237123547,27.20063189,141.83,141.8,8.32]
[1763237123745,1.86320117,141.81,141.8,8.32]
[1763237125156,8.91489004,141.81,141.8,8.32]
[1763237129433,9.57489004,141.81,141.8,8.32]
[1763237132159,27.20411223,141.81,141.78,8.32]
[1763237132335,1.86320117,141.79,141.78,8.32]
[1763237132542,1.86320117,141.79,141.78,9.04]
[1763237135167,8.91588471,141.79,141.78,9.04]
[1763237144971,8.91588471,141.79,141.78,8.32]
[1763237145155,34.67039825,141.79,141.74,0.69]
[1763237145366,1.86320117,141.75,141.74,0.69]
[1763237145560,1.86320117,141.75,141.71,50.0]
[1763237145857,24.68961625,141.76,141.73,0.69]
[1763237146074,24.68961625,141.76,141.74,8.32]
[1763237146549,24.68961625,141.76,141.74,9.01]
[1763237146950,1.86320117,141.75,141.74,8.32]
[1763237147160,1.86320117,141.76,141.74,8.32]
[1763237147577,1.86320117,141.76,141.75,0.69]
[1763237152764,7.05390395,141.77,141.75,0.69]
[1763237153086,1.86320117,141.76,141.75,0.69]
[1763237153387,1.86320117,141.76,141.75,9.01]
[1763237158064,8.91737724,141.76,141.75,9.01]
[1763237158989,9.58737724,141.76,141.75,8.32]
[1763237159187,8.91737724,141.76,141.75,8.32]
[1763237159391,9.58737724,141.76,141.75,8.32]
[1763237161488,8.91737724,141.76,141.75,8.32]
[1763237162970,9.58737724,141.76,141.75,8.32]
[1763237164499,8.91737724,141.76,141.75,8.32]
[1763237164670,9.58737724,141.76,141.75,8.32]
[1763237167599,27.22281742,141.76,141.73,8.32]
[1763237167808,1.86320117,141.74,141.73,8.32]
[1763237168209,2.53320117,141.74,141.69,50.79]
[1763237168387,1.86320117,141.71,141.7,9.01]
[1763237168702,1.86320117,141.72,141.7,9.01]
[1763237168908,1.86320117,141.72,141.71,0.69]
[1763237169287,1.86320117,141.72,141.71,22.37235995]
[1763237169489,1.86320117,141.73,141.71,22.37235995]
[1763237169801,1.86320117,141.74,141.72,8.32]
[1763237170182,1.86320117,141.74,141.72,9.01]
[1763237170894,2.91567283,141.74,141.72,9.01]
[1763237171093,2.91567283,141.73,141.72,9.01]
[1763237173079,2.91567283,141.74,141.72,9.01]
[1763237173406,2.91567283,141.74,141.73,0.71]
[1763237173786,2.91567283,141.75,141.73,0.71]
[1763237174091,2.91567283,141.75,141.74,8.32]
[1763237174486,7.05417607,141.76,141.74,9.03]
[1763237174802,2.91567283,141.75,141.74,9.03]
[1763237175693,2.91567283,141.76,141.75,0.72]
[1763237176394,7.0534894,141.78,141.75,0.72]
[1763237176596,2.91567283,141.78,141.76,8.32]
[1763237176981,2.91567283,141.79,141.77,0.72]
[1763237177198,2.91567283,141.79,141.78,8.32]
[1763237178779,2.91567283,141.79,141.78,9.04]
[1763237179404,29.70259479,141.82,141.78,9.04]
[1763237179577,2.91567283,141.8,141.79,0.72]
[1763237179775,2.91567283,141.8,141.79,9.04]
[1763237180392,9.967859,141.8,141.79,9.04]
[1763237181905,9.967859,141.8,141.79,8.32]
[1763237184410,9.967859,141.8,141.79,9.04]
[1763237187208,9.967859,141.8,141.79,8.32]
[1763237188296,2.91567283,141.8,141.79,9.04]
[1763237189196,9.967859,141.8,141.79,9.04]
[1763237189392,2.91567283,141.8,141.79,9.04]
[1763237192812,2.91299298,141.8,141.79,9.04]
[1763237193914,9.96517915,141.8,141.79,9.04]
[1763237197319,2.91299298,141.8,141.79,9.04]
[1763237202016,9.96517915,141.8,141.79,8.32]
[1763237205641,12.92817213,141.8,141.79,8.32]
[1763237206004,30.55863757,141.8,141.77,8.32]
[1763237206206,5.82598596,141.78,141.77,8.32]
[1763237208321,12.87916694,141.78,141.77,8.32]
[1763237211110,12.92916694,141.78,141.77,8.32]
[1763237211438,12.87916694,141.78,141.77,8.32]
[1763237211817,12.92916694,141.78,141.77,8.32]
[1763237213623,12.87916694,141.78,141.77,8.32]
[1763237214638,12.92916694,141.78,141.77,8.32]
[1763237217615,12.87916694,141.78,141.77,8.32]
[1763237218816,12.92916694,141.78,141.77,8.32]
[1763237222740,12.87916694,141.78,141.77,8.32]
[1763237222949,7.05318098,141.78,141.77,8.32]
[1763237223133,12.87916694,141.78,141.77,9.04]
[1763237223332,9.96617396,141.78,141.77,9.04]
[1763237225755,9.96617396,141.78,141.77,8.32]
[1763237226128,12.92916694,141.78,141.77,8.32]
[1763237226753,12.92916694,141.78,141.74,0.72]
[1763237226754,53.2133194,141.78,141.75,8.32]
[1763237226936,2.91299298,141.76,141.75,8.32]
[1763237227727,9.96716905,141.76,141.75,8.32]
[1763237228432,9.96716905,141.76,141.75,9.04]
[1763237229555,2.91299298,141.76,141.75,9.04]
[1763237231358,9.96716905,141.76,141.75,8.32]
[1763237231931,9.96716905,141.76,141.75,9.04]
[1763237232347,9.96716905,141.76,141.75,8.32]
[1763237232857,8.92029342,141.76,141.75,8.32]
[1763237233467,26.5557336,141.76,141.73,0.72]
[1763237233635,24.68961625,141.76,141.74,8.32]
[1763237233833,7.05417607,141.76,141.74,8.32]
[1763237234147,7.05417607,141.76,141.75,0.72]
[1763237234850,8.92029342,141.76,141.75,0.72]
[1763237246747,8.97029342,141.76,141.74,8.32]
[1763237246969,1.91611735,141.75,141.74,8.32]
[1763237247168,24.51731735,141.75,141.74,8.32]
[1763237247472,24.51731735,141.75,141.69,50.1]
[1763237247473,24.56731735,141.75,141.72,8.32]
[1763237247674,1.86611735,141.73,141.72,8.32]
[1763237248751,8.92178658,141.73,141.72,8.32]
[1763237254579,1.86611735,141.73,141.72,8.32]
[1763237255756,8.92178658,141.73,141.72,8.32]
[1763237257679,26.56095965,141.73,141.7,9.04]
[1763237257882,1.86611735,141.71,141.7,9.04]
[1763237258061,1.86611735,141.71,141.7,8.32]
[1763237258779,8.92278237,141.71,141.7,9.04]
[1763237262967,8.97278237,141.71,141.69,0.1]
[1763237263174,1.86611735,141.7,141.69,0.1]
[1763237264662,8.92328037,141.7,141.69,0.1]
[1763237265688,7.05666502,141.71,141.69,0.1]
[1763237265873,1.86611735,141.7,141.69,0.1]
[1763237268190,8.92328037,141.7,141.69,0.1]
[1763237268394,41.41330806,141.7,141.69,1e-08]
[1763237268570,62.61097631,141.7,141.69,1e-08]
[1763237268772,52.77214862,141.7,141.69,1e-08]
[1763237268984,31.57448037,141.7,141.69,1e-08]
[1763237269179,39.99448037,141.7,141.69,1e-08]
[1763237274097,39.99448037,141.7,141.69,0.66000001]
[1763237274288,31.57448037,141.7,141.69,0.66000001]
[1763237280092,31.57448037,141.7,141.69,1e-08]
[1763237280297,31.57448037,141.7,141.69,0.66000001]
[1763237281608,31.57448037,141.7,141.69,1e-08]
[1763237281910,31.57448037,141.7,141.69,0.66000001]
[1763237282410,31.57448037,141.7,141.69,1e-08]
[1763237282611,31.57448037,141.7,141.69,0.66000001]
[1763237283912,29.70836302,141.7,141.69,0.66000001]
[1763237284095,31.57448037,141.7,141.69,0.66000001]
[1763237284692,31.57448037,141.7,141.69,1e-08]
[1763237285315,31.57448037,141.7,141.69,0.66000001]
[1763237290910,31.57448037,141.7,141.69,1e-08]
[1763237292419,41.41330806,141.7,141.69,1e-08]
[1763237292623,18.76210806,141.7,141.69,1e-08]
[1763237292924,28.155404,141.7,141.69,1e-08]
[1763237293516,28.105404,141.7,141.69,1e-08]
[1763237296314,28.155404,141.7,141.69,1e-08]
[1763237300612,28.105404,141.7,141.69,1e-08]
[1763237300938,28.155404,141.7,141.69,1e-08]
[1763237302212,22.6512,141.67,141.65,0.81]
[1763237302519,28.49002658,141.66,141.65,0.81]
[1763237302934,36.83002658,141.66,141.65,0.81]
[1763237303840,43.8891823,141.66,141.65,0.1]
[1763237304010,22.6512,141.63,141.62,0.81]
[1763237304432,25.57061329,141.63,141.62,0.81]
[1763237305527,32.63126428,141.63,141.62,0.81]
[1763237306317,35.45881879,141.63,141.62,0.81]
[1763237307612,45.29764648,141.63,141.62,0.1]
[1763237307832,65.86868725,141.63,141.6,0.1]
[1763237308027,5.83882658,141.61,141.6,0.1]
[1763237308814,5.83882658,141.61,141.6,0.81]
[1763237309227,5.83882658,141.61,141.59,0.19579048]
[1763237309557,9.98156018,141.6,141.59,0.19579048]
[1763237310860,104.2,141.61,141.59,0.19579048]
[1763237311016,17.65104485,141.64,141.59,0.19579048]
[1763237311017,2.91941329,141.64,141.6,8.34]
[1763237311221,2.91941329,141.64,141.6,9.05]
[1763237311449,2.91941329,141.64,141.61,0.71]
[1763237311746,2.91941329,141.63,141.61,0.71]
[1763237314319,9.97965975,141.64,141.61,0.71]
[1763237315753,2.91941329,141.63,141.61,0.71]
[1763237316843,2.91941329,141.64,141.61,0.71]
[1763237318246,9.97968355,141.64,141.61,0.71]
[1763237321872,7.72027026,141.64,141.62,8.34]
[1763237322048,2.91941329,141.63,141.62,8.34]
[1763237324174,9.98006428,141.63,141.62,8.34]
[1763237328258,7.06029671,141.64,141.62,9.0]
[1763237328462,2.91941329,141.63,141.62,8.34]
[1763237328961,2.91941329,141.63,141.62,9.0]
[1763237329455,9.98006428,141.63,141.62,9.0]
[1763237332980,7.06065099,141.63,141.62,9.0]
[1763237333182,9.98006428,141.63,141.62,9.0]
[1763237338579,9.97956578,141.64,141.62,9.0]
[1763237340881,9.97956578,141.64,141.63,0.66]
[1763237341083,2.91941329,141.67,141.63,0.66]
[1763237341287,9.97757252,141.68,141.63,0.66]
[1763237341485,2.91941329,141.67,141.63,3.57941329]
[1763237341685,2.91941329,141.67,141.63,0.66]
[1763237341987,9.97757252,141.68,141.64,0.66]
[1763237342163,9.97757252,141.68,141.65,8.34]
[1763237342363,121.84487424,141.69,141.65,11.25941329]
[1763237342364,2.91941329,141.69,141.65,11.25941329]
[1763237342569,2.91941329,141.7,141.66,3.57941329]
[1763237342868,9.97618352,141.71,141.66,10.63813609]
[1763237343085,9.97618352,141.71,141.67,0.66]
[1763237343289,2.91941329,141.71,141.68,8.34]
[1763237343787,2.91941329,141.71,141.69,0.66]
[1763237344273,23.3512,141.73,141.69,0.66]
[1763237344590,7.05612436,141.73,141.69,0.66]
[1763237344894,2.91941329,141.73,141.69,10.63693846]
[1763237345190,9.97510027,141.73,141.69,0.66]
[1763237345388,2.91941329,141.72,141.7,0.66]